{"text_format":"1","workbook":"xlsx","n_sheets":2,"sheets":["cheque","Hoja1"],"not_rendered":{"charts":0,"images":0,"macros":1,"external_links":0,"defined_names":0,"comments":0,"pivot_tables":0},"unopened":[],"bounds":{"document_bytes":16777216,"sheet_cells":100000,"rows_first":2000,"rows_last":500,"rows_between":2000,"halvings":0,"cell_chars":16384,"cell_head_chars":4096},"cells_cut":0,"cells_raw":0,"read":"whole","date_system":"1900"}

{"sheet":"cheque","index":0,"n_rows":7,"n_cols":13,"rows_kept":7,"cut":false,"hidden":false,"merged":[[0,0,7,0]]}
[]
[null,null,{"$f":"+VLOOKUP(M2,Hoja1!A2:D281,2,FALSE)","v":"ALCIVAR GOMEZ MARCOS TULIO"},null,null,null,null,null,{"$f":"+VLOOKUP(M2,Hoja1!A2:D281,3,FALSE)","v":743.31102980367086},null,null,"No.",13]
[]
[null,null,{"$f":"+VLOOKUP(M2,Hoja1!A2:D281,4,FALSE)","v":" SETECIENTOS CUARENTA Y TRES 31/100 "}]
[]
[null,null,"**************************************************************************************************"]
[null,null,"QUITO, 15 DE ABRIL DE 2015"]

{"sheet":"Hoja1","index":1,"n_rows":281,"n_cols":5,"rows_kept":281,"cut":false,"hidden":false,"merged":[]}
["No.","Columna1","Monto","mayusculas","minusculas"]
[1,"ABRIL PINARGOTE DARWIN SEGUNDO",920.36516260538838,{"$f":"(+numletras(C2))","v":" NOVECIENTOS VEINTE 37/100 "},{"$f":"LOWER(+numletras(C2))","v":" novecientos veinte 37/100 "}]
[{"$f":"+A2+1","v":2},"ABRIL PINARGOTE YIXON FABRICIO",566.25689700195335,{"$f":"(+numletras(C3))","v":" QUINIENTOS SESENTA Y SEIS 26/100 "},{"$f":"LOWER(+numletras(C3))","v":" quinientos sesenta y seis 26/100 "}]
[{"$f":"+A3+1","v":3},"ABRIL VEGA FREDDY RAMIRO",64.867127366705986," SESENTA Y CUATRO 87/100 "," sesenta y cuatro 87/100 "]
[4,"ACOSTA JARAMILLO ANGELO GIOVANNY",153.39419376756473," CIENTO CINCUENTA Y TRES 39/100 "," ciento cincuenta y tres 39/100 "]
[5,"AGUILAR AGUILAR ANGEL VINICIO",1097.4192954071059," UN MIL NOVENTA Y SIETE 42/100 "," un mil noventa y siete 42/100 "]
[6,"AGUILAR VILLACIS WILLIAM ALFREDO",58.380414630035389," CINCUENTA Y OCHO 38/100 "," cincuenta y ocho 38/100 "]
[7,"AGUIRRE ARROBA DAYBER ERNESTO",743.31102980367086," SETECIENTOS CUARENTA Y TRES 31/100 "," setecientos cuarenta y tres 31/100 "]
[8,"ALAO ALAO AUGUSTO SIMON",91.895097102833475," NOVENTA Y UN 90/100 "," noventa y un 90/100 "]
[9,"ALAVA FARFAN EDISON FERNANDO",920.36516260538838," NOVECIENTOS VEINTE 37/100 "," novecientos veinte 37/100 "]
[10,"ALAVA SALAZAR PATRICIO JAVIER",96.219572260613873," NOVENTA Y SEIS 22/100 "," noventa y seis 22/100 "]
[11,"ALBURQUERQUE AREVALO WILMER AGUSTIN",920.36516260538838," NOVECIENTOS VEINTE 37/100 "," novecientos veinte 37/100 "]
[12,"ALCIVAR ALBAN JUAN FAUSTO",920.36516260538838,{"$f":"(+numletras(C13))","v":" NOVECIENTOS VEINTE 37/100 "}," novecientos veinte 37/100 "]
[13,"ALCIVAR GOMEZ MARCOS TULIO",743.31102980367086,{"$f":"(+numletras(C14))","v":" SETECIENTOS CUARENTA Y TRES 31/100 "}," setecientos cuarenta y tres 31/100 "]
[14,"ALVARADO CEVALLOS OSWALDO WASHINGTON",286.54837157852211,{"$f":"(+numletras(C15))","v":" DOSCIENTOS OCHENTA Y SEIS 55/100 "},{"$f":"LOWER(+numletras(C15))","v":" doscientos ochenta y seis 55/100 "}]
[15,"ALVARADO VILLAVICENCIO FREDDY FERNANDO",371.90320566574144," TRESCIENTOS SETENTA Y UN 90/100 "," trescientos setenta y un 90/100 "]
[16,"ALVEAR GUTIERREZ FRANKLIN ROBERT",467.85229099107244," CUATROCIENTOS SESENTA Y SIETE 85/100 "," cuatrocientos sesenta y siete 85/100 "]
[17,"ANALUIZA ALVARADO ANGEL RAMIRO",389.20276420023589," TRESCIENTOS OCHENTA Y NUEVE 20/100 "," trescientos ochenta y nueve 20/100 "]
[18,"ANDINO CUAMACAS CARLOS EMILIO",389.20276420023589," TRESCIENTOS OCHENTA Y NUEVE 20/100 "," trescientos ochenta y nueve 20/100 "]
[19,"ANILEMA MULLO THOMAS EFRAIN",23.784613367792193," VEINTITRES 78/100 "," veintitres 78/100 "]
[20,"ANILEMA MULLO CESAR JOSE",743.31102980367086," SETECIENTOS CUARENTA Y TRES 31/100 "," setecientos cuarenta y tres 31/100 "]
[21,"AREVALO RODRIGUEZ PEDRO ALEJANDRO",566.25689700195335," QUINIENTOS SESENTA Y SEIS 26/100 "," quinientos sesenta y seis 26/100 "]
[22,"ARIAS CAGUA ALFREDO ORLANDO",389.20276420023589," TRESCIENTOS OCHENTA Y NUEVE 20/100 "," trescientos ochenta y nueve 20/100 "]
[23,"ARMIJOS ROMAN CRISTIAN JAVIER",165.41117478510026," CIENTO SESENTA Y CINCO 41/100 "," ciento sesenta y cinco 41/100 "]
[24,"ARREAGA FRANCO ALEX ARTURO",144.86991778564337," CIENTO CUARENTA Y CUATRO 87/100 "," ciento cuarenta y cuatro 87/100 "]
[25,"ARREAGA GANCHOZO ANDERSON RAMON",389.20276420023589," TRESCIENTOS OCHENTA Y NUEVE 20/100 "," trescientos ochenta y nueve 20/100 "]
[26,"BARRAGAN PAREDES JUAN VICTORIANO",920.36516260538838," NOVECIENTOS VEINTE 37/100 "," novecientos veinte 37/100 "]
[27,"BARRETO HIDALGO OSCAR PATRICIO",105.94964136561978," CIENTO CINCO 95/100 "," ciento cinco 95/100 "]
[28,"BARZALLO SAEZ PEDRO YOVANY",743.31102980367086," SETECIENTOS CUARENTA Y TRES 31/100 "," setecientos cuarenta y tres 31/100 "]
[29,"BAUTISTA CABEZA ERICK PAUL",34.604588150119376," TREINTA Y CUATRO 60/100 "," treinta y cuatro 60/100 "]
[30,"BAUTISTA CABEZA CRISTIAN ADRIAN",705.61329133079778," SETECIENTOS CINCO 61/100 "," setecientos cinco 61/100 "]
[31,"BECERRA VIZUETE WILFRIDO JACINTO",920.36516260538838," NOVECIENTOS VEINTE 37/100 "," novecientos veinte 37/100 "]
[32,"BEDON CEVALLOS CARLOS ENRIQUE",389.20276420023589," TRESCIENTOS OCHENTA Y NUEVE 20/100 "," trescientos ochenta y nueve 20/100 "]
[33,"BELALCAZAR CALPA ALEXIS DAVID",566.25689700195335," QUINIENTOS SESENTA Y SEIS 26/100 "," quinientos sesenta y seis 26/100 "]
[34,"BELAYO CORDOVA EDUARDO AURELIO",131.89649231230217," CIENTO TREINTA Y UN 90/100 "," ciento treinta y un 90/100 "]
[35,"BLANCA SALDANA RICHARD DANNY",743.31102980367086," SETECIENTOS CUARENTA Y TRES 31/100 "," setecientos cuarenta y tres 31/100 "]
[36,"BOLANOS CUASPUD LUIS FERNANDO",371.90320566574144," TRESCIENTOS SETENTA Y UN 90/100 "," trescientos setenta y un 90/100 "]
[37,"BONILLA RODRIGUEZ LUIS ERMENEGILDO",566.25689700195335," QUINIENTOS SESENTA Y SEIS 26/100 "," quinientos sesenta y seis 26/100 "]
[38,"BRAVO VERA JOSE ANTONIO",355.6880817274378," TRESCIENTOS CINCUENTA Y CINCO 69/100 "," trescientos cincuenta y cinco 69/100 "]
[39,"BURGOS MENDOZA FRANCISCO ROLANDO",389.20276420023589," TRESCIENTOS OCHENTA Y NUEVE 20/100 "," trescientos ochenta y nueve 20/100 "]
[40,"BURGOS RUANO JENNY FATIMA",389.20276420023589," TRESCIENTOS OCHENTA Y NUEVE 20/100 "," trescientos ochenta y nueve 20/100 "]
[41,"BURGOS SOZA EDISON HONORATO",920.36516260538838," NOVECIENTOS VEINTE 37/100 "," novecientos veinte 37/100 "]
[42,"BUSTOS REAL WRIODESLEY VINICIO",327.57899320186522," TRESCIENTOS VEINTISIETE 58/100 "," trescientos veintisiete 58/100 "]
[43,"CABEZAS BRITO LUIS MIGUEL",743.31102980367086," SETECIENTOS CUARENTA Y TRES 31/100 "," setecientos cuarenta y tres 31/100 "]
[44,"CABEZAS LLIGUIN ROSA ANGELICA",920.36516260538838," NOVECIENTOS VEINTE 37/100 "," novecientos veinte 37/100 "]
[45,"CABEZAS MUNOZ JULIO WALDEMAR",789.53221530677899," SETECIENTOS OCHENTA Y NUEVE 53/100 "," setecientos ochenta y nueve 53/100 "]
[46,"CABRERA NARVAEZ NAAIR SNEYDER",389.20276420023589," TRESCIENTOS OCHENTA Y NUEVE 20/100 "," trescientos ochenta y nueve 20/100 "]
[47,"CACERES CACERES JOSE LUIS",91.895097102833475," NOVENTA Y UN 90/100 "," noventa y un 90/100 "]
[48,"CADENA PAREDES CESAR RAMIRO",64.867127366705986," SESENTA Y CUATRO 87/100 "," sesenta y cuatro 87/100 "]
[49,"CAICEDO RUANO SANDER PAUL",920.36516260538838," NOVECIENTOS VEINTE 37/100 "," novecientos veinte 37/100 "]
[50,"CAJAMARCA ALAO VICTOR HUMBERTO",91.895097102833475," NOVENTA Y UN 90/100 "," noventa y un 90/100 "]
[51,"CAJAS TOCA JOSE VICENTE",128.65313594396687," CIENTO VEINTIOCHO 65/100 "," ciento veintiocho 65/100 "]
[52,"CAÑAVERAL COLLAHUAZO CESAR AUGUSTO",908.41930564254881," NOVECIENTOS OCHO 42/100 "," novecientos ocho 42/100 "]
[53,"CANO DE LA TORRE",47.569226735584387," CUARENTA Y SIETE 57/100 "," cuarenta y siete 57/100 "]
[54,"CANTUNA PACHACAMA BYRON DAVID",389.20276420023589," TRESCIENTOS OCHENTA Y NUEVE 20/100 "," trescientos ochenta y nueve 20/100 "]
[55,"CARPIO CEPEDA SEGUNDO ANTONIO",566.25689700195335," QUINIENTOS SESENTA Y SEIS 26/100 "," quinientos sesenta y seis 26/100 "]
[56,"CARRILLO TORRES SEGUNDO RODRIGO",743.31102980367086," SETECIENTOS CUARENTA Y TRES 31/100 "," setecientos cuarenta y tres 31/100 "]
[57,"CASTELO BORJA JORGE ESTUARDO",566.25689700195335," QUINIENTOS SESENTA Y SEIS 26/100 "," quinientos sesenta y seis 26/100 "]
[58,"CASTILLO CASTILLO FRANCISCO LEONARDO",566.25689700195335," QUINIENTOS SESENTA Y SEIS 26/100 "," quinientos sesenta y seis 26/100 "]
[59,"CASTRO BOSADA JUAN EDUARDO",566.25689700195335," QUINIENTOS SESENTA Y SEIS 26/100 "," quinientos sesenta y seis 26/100 "]
[60,"CASTRO CASTRO ROBERTO RODOLFO",743.31102980367086," SETECIENTOS CUARENTA Y TRES 31/100 "," setecientos cuarenta y tres 31/100 "]
[61,"CASTRO PAREJA BRYAN ANTONIO",389.20276420023589," TRESCIENTOS OCHENTA Y NUEVE 20/100 "," trescientos ochenta y nueve 20/100 "]
[62,"CASTRO VILLALVA CARLOS LEONARDO",743.31102980367086," SETECIENTOS CUARENTA Y TRES 31/100 "," setecientos cuarenta y tres 31/100 "]
[63,"CASTRO VILLALVA WILSON EMILIANO",1274.4734282088234," UN MIL DOSCIENTOS SETENTA Y CUATRO 47/100 "," un mil doscientos setenta y cuatro 47/100 "]
[64,"CEDENO RIOS JANNER ANTONIO",151.35663052231396," CIENTO CINCUENTA Y UN 36/100 "," ciento cincuenta y un 36/100 "]
[65,"CEDENO TABARES JOSE EDISON",1097.4192954071059," UN MIL NOVENTA Y SIETE 42/100 "," un mil noventa y siete 42/100 "]
[66,"CEVALLOS REYES FRANKLIN ANDRES",101.62516620783937," CIENTO UN 63/100 "," ciento un 63/100 "]
[{"$f":"+A67+1","v":67},"CHAFLA SANCHEZ HOLGUER JOEL",270.27969736127494," DOSCIENTOS SETENTA 28/100 "," doscientos setenta 28/100 "]
[68,"CHANGO GUEVARA FABIAN MARTIN",96.219572260613873," NOVENTA Y SEIS 22/100 "," noventa y seis 22/100 "]
[69,"CHAVEZ CASTILLO ANGEL ROSENDO",566.25689700195335," QUINIENTOS SESENTA Y SEIS 26/100 "," quinientos sesenta y seis 26/100 "]
[70,"CHIMBA MILLINGALLI FRANKLIN ABEL",57.29929584059029," CINCUENTA Y SIETE 30/100 "," cincuenta y siete 30/100 "]
[71,"CHOEZ BAQUE VICTOR ANDRES",101.62516620783937," CIENTO UN 63/100 "," ciento un 63/100 "]
[72,"CHOEZ PENAFIEL JOSE IVAN",640.16125565414518," SEISCIENTOS CUARENTA 16/100 "," seiscientos cuarenta 16/100 "]
[73,"COIME COLOBON WALTER EDUARDO",389.20276420023589," TRESCIENTOS OCHENTA Y NUEVE 20/100 "," trescientos ochenta y nueve 20/100 "]
[74,"COLLAGUAZO PALLO HECTOR GIOVANNY",389.20276420023589," TRESCIENTOS OCHENTA Y NUEVE 20/100 "," trescientos ochenta y nueve 20/100 "]
[75,"CONDE QUIMBIAMBA FERNANDO RENE",57.29929584059029," CINCUENTA Y SIETE 30/100 "," cincuenta y siete 30/100 "]
[76,"CONDO BUESTAN VICTOR FABIAN",91.895097102833475," NOVENTA Y UN 90/100 "," noventa y un 90/100 "]
[77,"CONFORME VARGAS WILSON WILMER",96.219572260613873," NOVENTA Y SEIS 22/100 "," noventa y seis 22/100 "]
[78,"CORDOVA JIMENEZ JUAN CARLOS",298.74191930526774,{"$f":"(+numletras(C79))","v":" DOSCIENTOS NOVENTA Y OCHO 74/100 "},{"$f":"LOWER(+numletras(C79))","v":" doscientos noventa y ocho 74/100 "}]
[79,"CORELLA VITERI JESUS ERIBERTO",59.461533419480489," CINCUENTA Y NUEVE 46/100 "," cincuenta y nueve 46/100 "]
[80,"CUENCA LUPU OSCAR IVAN",615.29635244859423," SEISCIENTOS QUINCE 30/100 "," seiscientos quince 30/100 "]
[81,"CRIOLLO ARTEAGA JOSE ALFREDO",1097.4192954071059," UN MIL NOVENTA Y SIETE 42/100 "," un mil noventa y siete 42/100 "]
[82,"CRIOLLO ARTEAGA MARCO ANTONIO",164.33005599565516," CIENTO SESENTA Y CUATRO 33/100 "," ciento sesenta y cuatro 33/100 "]
[83,"CUASAPAZ SERRANO LIBARDO ALONSO",389.20276420023589," TRESCIENTOS OCHENTA Y NUEVE 20/100 "," trescientos ochenta y nueve 20/100 "]
[84,"CUEVA CASTILLO JORGE DARIO",389.20276420023589," TRESCIENTOS OCHENTA Y NUEVE 20/100 "," trescientos ochenta y nueve 20/100 "]
[85,"DELGADO GUADAMUD IVAN MARCELO",520.64175807679601," QUINIENTOS VEINTE 64/100 "," quinientos veinte 64/100 "]
[86,"DELGADO SUAREZ DAVID FERNANDO",51.893701893364792," CINCUENTA Y UN 89/100 "," cincuenta y un 89/100 "]
[87,"DELGADO SUAREZ WASHINGTON ENRIQUE",920.36516260538838," NOVECIENTOS VEINTE 37/100 "," novecientos veinte 37/100 "]
[88,"DIAS LARA JHONNY STALIN",389.20276420023589," TRESCIENTOS OCHENTA Y NUEVE 20/100 "," trescientos ochenta y nueve 20/100 "]
[89,"DIAZ VANEGAS ISAAC ARNALDO",91.895097102833475," NOVENTA Y UN 90/100 "," noventa y un 90/100 "]
[90,"DIAZ VELASQUEZ LUIS HIPOLITO",91.895097102833475," NOVENTA Y UN 90/100 "," noventa y un 90/100 "]
[91,"DUCHE DUCHE DUVAL ARIOSTO",389.20276420023589," TRESCIENTOS OCHENTA Y NUEVE 20/100 "," trescientos ochenta y nueve 20/100 "]
[92,"DUQUE CALDERON ENRIQUE MARCELO",200.00697604734344," DOSCIENTOS 01/100 "," doscientos 01/100 "]
[93,"EGAS JARA CARLOS FABRICIO",368.661507200779," TRESCIENTOS SESENTA Y OCHO 66/100 "," trescientos sesenta y ocho 66/100 "]
[94,"ERAZO MORALES EDWIN FERNANDO",1097.4192954071059," UN MIL NOVENTA Y SIETE 42/100 "," un mil noventa y siete 42/100 "]
[95,"ESPINEL LEON CRISTIAN EDUARDO",101.62516620783937," CIENTO UN 63/100 "," ciento un 63/100 "]
[96,"FLORES YANEZ ANA PATRICIA",353.52584414854761," TRESCIENTOS CINCUENTA Y TRES 53/100 "," trescientos cincuenta y tres 53/100 "]
[97,"ESPINOZA ANDRADE ROBERTO PABLO",0," 00/100 "," 00/100 "]
[98,"ESPINOZA NOGUERA NELSON DAVID",743.31102980367086," SETECIENTOS CUARENTA Y TRES 31/100 "," setecientos cuarenta y tres 31/100 "]
[99,"ESTACIO CHILA JOSE ABRAHAM",82.165027997827579," OCHENTA Y DOS 16/100 "," ochenta y dos 16/100 "]
[100,"FLORES CACERES FABRICIO ALEXANDER",389.20276420023589," TRESCIENTOS OCHENTA Y NUEVE 20/100 "," trescientos ochenta y nueve 20/100 "]
[101,"FLORES DUQUE VICTOR ANDRES",382.71605146356529," TRESCIENTOS OCHENTA Y DOS 72/100 "," trescientos ochenta y dos 72/100 "]
[102,"FLORES HALLO EDISON HERNAN",123.88517163394516," CIENTO VEINTITRES 89/100 "," ciento veintitres 89/100 "]
[103,"FRANCO TIGUA GEOVANNY ALBERTO",147.85596755051006," CIENTO CUARENTA Y SIETE 86/100 "," ciento cuarenta y siete 86/100 "]
[104,"FREIRE ANCHUNDIA JOSE ANTONIO",365.4181508324437," TRESCIENTOS SESENTA Y CINCO 42/100 "," trescientos sesenta y cinco 42/100 "]
[105,"FREIRE ANCHUNDIA OSCAR FABIAN",368.661507200779," TRESCIENTOS SESENTA Y OCHO 66/100 "," trescientos sesenta y ocho 66/100 "]
[106,"FUENTES MANOBANDA SEGUNDO GUALBERTO",743.31102980367086," SETECIENTOS CUARENTA Y TRES 31/100 "," setecientos cuarenta y tres 31/100 "]
[107,"GAROFALO GAROFALO JONATHAN LEODAN",149.19439294342376," CIENTO CUARENTA Y NUEVE 19/100 "," ciento cuarenta y nueve 19/100 "]
[108,"GAROFALO GAROFALO MILTON STALIN",0," 00/100 "," 00/100 "]
[109,"GAVILANES RAMIREZ OSCAR MESIAS",389.20276420023589," TRESCIENTOS OCHENTA Y NUEVE 20/100 "," trescientos ochenta y nueve 20/100 "]
[110,"GOMEZ QUISHPI ANGEL VINICIO",149.19439294342376," CIENTO CUARENTA Y NUEVE 19/100 "," ciento cuarenta y nueve 19/100 "]
[111,"GONZABAY LINDAO MANUEL FELICIANO",741.24627694310516," SETECIENTOS CUARENTA Y UN 25/100 "," setecientos cuarenta y un 25/100 "]
[112,"GONZALEZ ALQUINGA HUGO LEONARDO",389.20276420023589," TRESCIENTOS OCHENTA Y NUEVE 20/100 "," trescientos ochenta y nueve 20/100 "]
[113,"GONZALEZ JACOME CRISTIAN IVAN",1097.4192954071059," UN MIL NOVENTA Y SIETE 42/100 "," un mil noventa y siete 42/100 "]
[114,"GUAMAN TIÑE PABLO RIGOBERTO",194.08676889318073," CIENTO NOVENTA Y CUATRO 09/100 "," ciento noventa y cuatro 09/100 "]
[115,"GUAMARICA GARCIA ANGEL ANTONIO",298.74191930526774," DOSCIENTOS NOVENTA Y OCHO 74/100 "," doscientos noventa y ocho 74/100 "]
[116,"GUANO INTE DIEGO MAURICIO",23.784613367792193," VEINTITRES 78/100 "," veintitres 78/100 "]
[117,"GUANOQUIZA ENRIQUEZ CLAUDIO ",91.895097102833475," NOVENTA Y UN 90/100 "," noventa y un 90/100 "]
[118,"HEREDIA ERAZO POLI ANTONIO",389.20276420023589," TRESCIENTOS OCHENTA Y NUEVE 20/100 "," trescientos ochenta y nueve 20/100 "]
[119,"HERNANDEZ CORDOVA LUIS OSWALDO",389.20276420023589," TRESCIENTOS OCHENTA Y NUEVE 20/100 "," trescientos ochenta y nueve 20/100 "]
[120,"HERNANDEZ ROSERO PEDRO OSWALDO",389.20276420023589," TRESCIENTOS OCHENTA Y NUEVE 20/100 "," trescientos ochenta y nueve 20/100 "]
[121,"HERRERA HINOJOSA OSCAR ",94.376149500325567," NOVENTA Y CUATRO 38/100 "," noventa y cuatro 38/100 "]
[122,"HERRERA VILLACIS JONATHAN PEDRO",140.54544262786297," CIENTO CUARENTA 55/100 "," ciento cuarenta 55/100 "]
[123,"HIDALGO CALVA DIEGO FERNANDO",117.84194804951588," CIENTO DIECISIETE 84/100 "," ciento diecisiete 84/100 "]
[124,"HIDALGO CASTILLO JULIO EDILBERTO",140.54544262786297," CIENTO CUARENTA 55/100 "," ciento cuarenta 55/100 "]
[125,"GUZMAN SANTIAGO HIDALGO ",23.784613367792193," VEINTITRES 78/100 "," veintitres 78/100 "]
[126,"HUATATOCA ANDY MARIO ANGEL",743.31102980367086," SETECIENTOS CUARENTA Y TRES 31/100 "," setecientos cuarenta y tres 31/100 "]
[127,"HURTADO CANDO GABRIEL ORLANDO",112.43635410229038," CIENTO DOCE 44/100 "," ciento doce 44/100 "]
[128,"INSUASTI ECHEVERRIA MARCO ",286.33582836612084," DOSCIENTOS OCHENTA Y SEIS 34/100 "," doscientos ochenta y seis 34/100 "]
[129,"INTRIAGO CEDENO JOSE LENIN",64.867127366705986," SESENTA Y CUATRO 87/100 "," sesenta y cuatro 87/100 "]
[130,"JACOME JIMENEZ GUILLERMO FERNANDO",389.20276420023589," TRESCIENTOS OCHENTA Y NUEVE 20/100 "," trescientos ochenta y nueve 20/100 "]
[{"$f":"+A131+1","v":131},"JACOME MARTINEZ ISRAEL FERNANDO",389.20276420023589," TRESCIENTOS OCHENTA Y NUEVE 20/100 "," trescientos ochenta y nueve 20/100 "]
[132,"JACOME MARTINEZ LUIS ANDRES",389.20276420023589," TRESCIENTOS OCHENTA Y NUEVE 20/100 "," trescientos ochenta y nueve 20/100 "]
[133,"JACOME RODRIGUEZ VICTOR HUGO",389.20276420023589," TRESCIENTOS OCHENTA Y NUEVE 20/100 "," trescientos ochenta y nueve 20/100 "]
[134,"JIMENEZ ANDALUZ ELADIO JACINTO",755.99995905822857," SETECIENTOS CINCUENTA Y SEIS 00/100 "," setecientos cincuenta y seis 00/100 "]
[135,"JIMENEZ DIAZ WILSON EDUARDO",68.110483735041285," SESENTA Y OCHO 11/100 "," sesenta y ocho 11/100 "]
[136,"LAPO MAZA SERVILIO MANUEL",743.31102980367086," SETECIENTOS CUARENTA Y TRES 31/100 "," setecientos cuarenta y tres 31/100 "]
[137,"LEIVA JIMENEZ WILAR ARCANGEL",389.20276420023589," TRESCIENTOS OCHENTA Y NUEVE 20/100 "," trescientos ochenta y nueve 20/100 "]
[138,"LEMA GUARAY LUIS GILBERTO",920.36516260538838," NOVECIENTOS VEINTE 37/100 "," novecientos veinte 37/100 "]
[139,"LEON LEMA JIMMY ALEXANDER",743.31102980367086," SETECIENTOS CUARENTA Y TRES 31/100 "," setecientos cuarenta y tres 31/100 "]
[140,"LOACHAMIN TOAPANTA MARCO OSWALDO",90.813978313388375," NOVENTA 81/100 "," noventa 81/100 "]
[141,"LOOR VELASQUEZ CARLOS VICENTE",45.406989156694188," CUARENTA Y CINCO 41/100 "," cuarenta y cinco 41/100 "]
[142,"LOPEZ GARCIA JORGE ALFREDO",134.05872989119237,{"$f":"(+numletras(C143))","v":" CIENTO TREINTA Y CUATRO 06/100 "},{"$f":"LOWER(+numletras(C143))","v":" ciento treinta y cuatro 06/100 "}]
[143,"LOPEZ MARCILLO JAIME AGAPITO",278.92864767683574," DOSCIENTOS SETENTA Y OCHO 93/100 "," doscientos setenta y ocho 93/100 "]
[144,"LOPEZ RUIZ MARIA JOSE",566.25689700195335," QUINIENTOS SESENTA Y SEIS 26/100 "," quinientos sesenta y seis 26/100 "]
[145,"LOYO REINOSO JOSE LUIS",389.20276420023589," TRESCIENTOS OCHENTA Y NUEVE 20/100 "," trescientos ochenta y nueve 20/100 "]
[146,"LOZA RIVADENEIRA AIDA PAULINA",389.20276420023589," TRESCIENTOS OCHENTA Y NUEVE 20/100 "," trescientos ochenta y nueve 20/100 "]
[147,"LOZA ROMO CLAUDIA ALEJANDRA",389.20276420023589," TRESCIENTOS OCHENTA Y NUEVE 20/100 "," trescientos ochenta y nueve 20/100 "]
[148,"LOZA ROMO JACQUELINE ELIZABETH",389.20276420023589," TRESCIENTOS OCHENTA Y NUEVE 20/100 "," trescientos ochenta y nueve 20/100 "]
[149,"LOZA ROMO MARIA JOSE",389.20276420023589," TRESCIENTOS OCHENTA Y NUEVE 20/100 "," trescientos ochenta y nueve 20/100 "]
[150,"LUZON PEREZ FREDDY DANIEL",299.46990467629263," DOSCIENTOS NOVENTA Y NUEVE 47/100 "," doscientos noventa y nueve 47/100 "]
[151,"MACIAS ORTEGA FRANKLIN GIOVANNY",1097.4192954071059," UN MIL NOVENTA Y SIETE 42/100 "," un mil noventa y siete 42/100 "]
[152,"MALLA PASICHE JOSE LUIS",389.20276420023589," TRESCIENTOS OCHENTA Y NUEVE 20/100 "," trescientos ochenta y nueve 20/100 "]
[153,"MANZABA ZAMBRANO FROWEN PATRICIO",1097.4192954071059," UN MIL NOVENTA Y SIETE 42/100 "," un mil noventa y siete 42/100 "]
[154,"MARTINEZ OCHOA RAUL EDISON",920.36516260538838," NOVECIENTOS VEINTE 37/100 "," novecientos veinte 37/100 "]
[155,"MASABANDA REAL CARLOS RAFAEL",389.20276420023589," TRESCIENTOS OCHENTA Y NUEVE 20/100 "," trescientos ochenta y nueve 20/100 "]
[156,"MASABANDA VILLACIS JAVIER EDUARDO",64.867127366705986," SESENTA Y CUATRO 87/100 "," sesenta y cuatro 87/100 "]
[157,"MATAILO GONZALEZ ANGEL LEONEL",743.31102980367086," SETECIENTOS CUARENTA Y TRES 31/100 "," setecientos cuarenta y tres 31/100 "]
[158,"MEDIAVILLA EDGAR RENE ",389.20276420023589," TRESCIENTOS OCHENTA Y NUEVE 20/100 "," trescientos ochenta y nueve 20/100 "]
[159,"MEDRANO JOSE SAN MARTIN",98.381809839504072," NOVENTA Y OCHO 38/100 "," noventa y ocho 38/100 "]
[160,"MEDRANO NUNEZ CESAR AUGUSTO",369.7426259902241," TRESCIENTOS SESENTA Y NUEVE 74/100 "," trescientos sesenta y nueve 74/100 "]
[161,"MEJIA CUEVA AMABLE GONZALO",389.20276420023589," TRESCIENTOS OCHENTA Y NUEVE 20/100 "," trescientos ochenta y nueve 20/100 "]
[162,"MENA LOOR FREDDY MISAEL",389.20276420023589," TRESCIENTOS OCHENTA Y NUEVE 20/100 "," trescientos ochenta y nueve 20/100 "]
[163,"MENA LOOR VICTOR MANUEL",1097.4192954071059," UN MIL NOVENTA Y SIETE 42/100 "," un mil noventa y siete 42/100 "]
[164,"MENDEZ PAZMIÑO JIMMY SILVESTRE",101.62516620783937," CIENTO UN 63/100 "," ciento un 63/100 "]
[165,"MENDOZA ARROBO CESAR AUGUSTO",389.20276420023589," TRESCIENTOS OCHENTA Y NUEVE 20/100 "," trescientos ochenta y nueve 20/100 "]
[166,"MERA MORALES ELPIDIO RAMON",389.20276420023589," TRESCIENTOS OCHENTA Y NUEVE 20/100 "," trescientos ochenta y nueve 20/100 "]
[167,"MERO CABEZA VICTOR RICARDO",237.76100033972534," DOSCIENTOS TREINTA Y SIETE 76/100 "," doscientos treinta y siete 76/100 "]
[168,"MERO REINA GEOVANNY ALBERTO",389.20276420023589," TRESCIENTOS OCHENTA Y NUEVE 20/100 "," trescientos ochenta y nueve 20/100 "]
[169,"MONAR MONAR HOLGER RUBEN",389.20276420023589," TRESCIENTOS OCHENTA Y NUEVE 20/100 "," trescientos ochenta y nueve 20/100 "]
[170,"MONAR SALVATIERRA PEDRO SILVANO",389.20276420023589," TRESCIENTOS OCHENTA Y NUEVE 20/100 "," trescientos ochenta y nueve 20/100 "]
[171,"MORALES ATAHUALPA HERMEL FABIAN",57.29929584059029," CINCUENTA Y SIETE 30/100 "," cincuenta y siete 30/100 "]
[172,"MOREIRA CEDENO ANGEL LEONARDO",136.22096747008257," CIENTO TREINTA Y SEIS 22/100 "," ciento treinta y seis 22/100 "]
[173,"MOREIRA CEDENO ELVIS JAVIER",318.93004288630442," TRESCIENTOS DIECIOCHO 93/100 "," trescientos dieciocho 93/100 "]
[174,"MORENO CAMPANA SILVIA MARLENE",354.60696293799271," TRESCIENTOS CINCUENTA Y CUATRO 61/100 "," trescientos cincuenta y cuatro 61/100 "]
[175,"MOROCHO TAYUPANDA VICTOR RODRIGO",389.20276420023589," TRESCIENTOS OCHENTA Y NUEVE 20/100 "," trescientos ochenta y nueve 20/100 "]
[176,"MUÑOZ TAMAY SEGUNDO PATRICIO",743.31102980367086," SETECIENTOS CUARENTA Y TRES 31/100 "," setecientos cuarenta y tres 31/100 "]
[177,"MURILLO PATINO WILMER PATRICIO",389.20276420023589," TRESCIENTOS OCHENTA Y NUEVE 20/100 "," trescientos ochenta y nueve 20/100 "]
[178,"NARANJO CASTILLO ANGEL LENIN",64.867127366705986," SESENTA Y CUATRO 87/100 "," sesenta y cuatro 87/100 "]
[179,"NAVARRO BAEZ CHRISTIAN RODRIGO",920.36516260538838," NOVECIENTOS VEINTE 37/100 "," novecientos veinte 37/100 "]
[180,"NAZARENO ROBLES RAFAEL ALEJANDRO",566.25689700195335," QUINIENTOS SESENTA Y SEIS 26/100 "," quinientos sesenta y seis 26/100 "]
[181,"ONA GALLEGOS HENRY GIOVANY",389.20276420023589," TRESCIENTOS OCHENTA Y NUEVE 20/100 "," trescientos ochenta y nueve 20/100 "]
[182,"ORTIZ MORAN MILTON LENNIN",920.36516260538838," NOVECIENTOS VEINTE 37/100 "," novecientos veinte 37/100 "]
[183,"PALACIO BORJA PABLO JOSE",123.88517163394516," CIENTO VEINTITRES 89/100 "," ciento veintitres 89/100 "]
[184,"PALACIOS GUALPA DAVID HERNANDO",389.20276420023589," TRESCIENTOS OCHENTA Y NUEVE 20/100 "," trescientos ochenta y nueve 20/100 "]
[185,"PALMA QUIROS JENNY MARICELA",123.88517163394516," CIENTO VEINTITRES 89/100 "," ciento veintitres 89/100 "]
[186,"PARCO CHIMBOLEMA JORGE HUMBERTO",920.36516260538838," NOVECIENTOS VEINTE 37/100 "," novecientos veinte 37/100 "]
[187,"PAREDES CARDONA ANGEL VICENTE",566.25689700195335," QUINIENTOS SESENTA Y SEIS 26/100 "," quinientos sesenta y seis 26/100 "]
[188,"PAREDES NOGALES CRISTIAN PAUL",298.38878588684753," DOSCIENTOS NOVENTA Y OCHO 39/100 "," doscientos noventa y ocho 39/100 "]
[189,"PATINO PINTO JORGE RENE",276.76641009794554," DOSCIENTOS SETENTA Y SEIS 77/100 "," doscientos setenta y seis 77/100 "]
[190,"PAZMINO EGAS MANUEL FERNANDO",566.25689700195335," QUINIENTOS SESENTA Y SEIS 26/100 "," quinientos sesenta y seis 26/100 "]
[191,"PAZMIÑO GRANDA DIEGO FERNANDO",389.20276420023589," TRESCIENTOS OCHENTA Y NUEVE 20/100 "," trescientos ochenta y nueve 20/100 "]
[192,"PENAFIEL MEZA FRANCISCO JAVIER",70.272721313931484," SETENTA 27/100 "," setenta 27/100 "]
[193,"PEÑARRIETA DELGADO RICARDO ANTONIO",105.94964136561978," CIENTO CINCO 95/100 "," ciento cinco 95/100 "]
[194,"PILLASAGUA REYES ROBERT FELICIANO",389.20276420023589," TRESCIENTOS OCHENTA Y NUEVE 20/100 "," trescientos ochenta y nueve 20/100 "]
[{"$f":"+A195+1","v":195},"POVEA BONILLA GALO STALIN",920.36516260538838," NOVECIENTOS VEINTE 37/100 "," novecientos veinte 37/100 "]
[196,"PRADO PENA ALVARO JOSE",389.20276420023589," TRESCIENTOS OCHENTA Y NUEVE 20/100 "," trescientos ochenta y nueve 20/100 "]
[197,"QUEZADA RODRIGUEZ ANGEL MILTON",920.36516260538838," NOVECIENTOS VEINTE 37/100 "," novecientos veinte 37/100 "]
[198,"QUIGUIRI QUIMBITA JOSE NELSON",389.20276420023589," TRESCIENTOS OCHENTA Y NUEVE 20/100 "," trescientos ochenta y nueve 20/100 "]
[199,"QUIMI TUMBACO CARLOS ALBERTO",981.5805920030225," NOVECIENTOS OCHENTA Y UN 58/100 "," novecientos ochenta y un 58/100 "]
[200,"QUIMIS PONCE HIPOLITO SABINO",194.08676889318073," CIENTO NOVENTA Y CUATRO 09/100 "," ciento noventa y cuatro 09/100 "]
[201,"QUINATOA GUAPULEMA DIEGO ARMANDO",57.29929584059029," CINCUENTA Y SIETE 30/100 "," cincuenta y siete 30/100 "]
[202,"QUINONEZ CASTRO PAUL ALEXANDER",389.20276420023589," TRESCIENTOS OCHENTA Y NUEVE 20/100 "," trescientos ochenta y nueve 20/100 "]
[203,"QUINTANILLA ESPINOZA CARLOS JAVIER",64.867127366705986," SESENTA Y CUATRO 87/100 "," sesenta y cuatro 87/100 "]
[204,"QUISTIAL CANDO DANY LEANDRO",743.31102980367086," SETECIENTOS CUARENTA Y TRES 31/100 "," setecientos cuarenta y tres 31/100 "]
[205,"RAMOS ARRIETA GONZALO PATRICIO",140.54544262786297," CIENTO CUARENTA 55/100 "," ciento cuarenta 55/100 "]
[206,"RAMOS ARRIETA WILFRIDO NAPOLEON",135.13984868063747,{"$f":"(+numletras(C207))","v":" CIENTO TREINTA Y CINCO 14/100 "},{"$f":"LOWER(+numletras(C207))","v":" ciento treinta y cinco 14/100 "}]
[207,"REA RAMIREZ DARWIN RODIL",389.20276420023589," TRESCIENTOS OCHENTA Y NUEVE 20/100 "," trescientos ochenta y nueve 20/100 "]
[208,"REYES PRECIADO MARIANA LUCIA",0," 00/100 "," 00/100 "]
[209,"RIZZO SANTANA MARTIN ALBERTO",356.7692005168829," TRESCIENTOS CINCUENTA Y SEIS 77/100 "," trescientos cincuenta y seis 77/100 "]
[210,"RODRIGUEZ TAMAYO LUIS ALFREDO",101.62516620783937," CIENTO UN 63/100 "," ciento un 63/100 "]
[211,"RODRIGUEZ TRUJILLO JORGE ALEXANDER",743.31102980367086," SETECIENTOS CUARENTA Y TRES 31/100 "," setecientos cuarenta y tres 31/100 "]
[212,"ROMERO CHILA GAILER ESTALIN",566.25689700195335," QUINIENTOS SESENTA Y SEIS 26/100 "," quinientos sesenta y seis 26/100 "]
[213,"ROMERO SACOTO FAUSTO RENE",743.31102980367086," SETECIENTOS CUARENTA Y TRES 31/100 "," setecientos cuarenta y tres 31/100 "]
[214,"ROMO CALISTO ELBA ELIZABETH",389.20276420023589," TRESCIENTOS OCHENTA Y NUEVE 20/100 "," trescientos ochenta y nueve 20/100 "]
[215,"ROSERO CORREA JHONATAN JAVIER",566.25689700195335," QUINIENTOS SESENTA Y SEIS 26/100 "," quinientos sesenta y seis 26/100 "]
[216,"SANCHEZ CASTRO ANDRES CECILIO",101.62516620783937," CIENTO UN 63/100 "," ciento un 63/100 "]
[217,"SANCHEZ CAYANCELA FREDY RAFAEL",389.20276420023589," TRESCIENTOS OCHENTA Y NUEVE 20/100 "," trescientos ochenta y nueve 20/100 "]
[218,"SANCHEZ ERAZO ARMANDO RENE",389.20276420023589," TRESCIENTOS OCHENTA Y NUEVE 20/100 "," trescientos ochenta y nueve 20/100 "]
[219,"SANCHEZ LARA HERNAN VINICIO",389.20276420023589," TRESCIENTOS OCHENTA Y NUEVE 20/100 "," trescientos ochenta y nueve 20/100 "]
[220,"SANCHEZ PANAMA HAMILTON JACINTO",64.867127366705986," SESENTA Y CUATRO 87/100 "," sesenta y cuatro 87/100 "]
[221,"SANCHEZ RAMOS SILVIA ALEJANDRA",89.657342025309291," OCHENTA Y NUEVE 66/100 "," ochenta y nueve 66/100 "]
[222,"SANCHEZ ROJAS SEGUNDO LIZARDO",920.36516260538838," NOVECIENTOS VEINTE 37/100 "," novecientos veinte 37/100 "]
[223,"SANCHEZ SACON RUBEN AGUSTIN",389.20276420023589," TRESCIENTOS OCHENTA Y NUEVE 20/100 "," trescientos ochenta y nueve 20/100 "]
[224,"SANCHEZ SOTO JONATHAN JAVIER",389.20276420023589," TRESCIENTOS OCHENTA Y NUEVE 20/100 "," trescientos ochenta y nueve 20/100 "]
[225,"SANGACHA LEMA LUIS ENRIQUE",64.867127366705986," SESENTA Y CUATRO 87/100 "," sesenta y cuatro 87/100 "]
[226,"SANTACRUZ MONTES LUIS ADOLFO",357.850319306328," TRESCIENTOS CINCUENTA Y SIETE 85/100 "," trescientos cincuenta y siete 85/100 "]
[227,"SANTILLAN ROJAS ANGEL IVAN",23.784613367792193," VEINTITRES 78/100 "," veintitres 78/100 "]
[228,"SANTOS GOMEZ MIGUEL ANGEL",58.380414630035389," CINCUENTA Y OCHO 38/100 "," cincuenta y ocho 38/100 "]
[229,"SARANGO ACACHO JOSE EDWIN",389.20276420023589," TRESCIENTOS OCHENTA Y NUEVE 20/100 "," trescientos ochenta y nueve 20/100 "]
[230,"SARANGO QUITO MOISES NAZARENO",389.20276420023589," TRESCIENTOS OCHENTA Y NUEVE 20/100 "," trescientos ochenta y nueve 20/100 "]
[231,"SILLO VILLAGOMEZ CARLOS JEREMIAS",566.25689700195335," QUINIENTOS SESENTA Y SEIS 26/100 "," quinientos sesenta y seis 26/100 "]
[232,"SIMBAÑA JORGE VICENTE ",389.20276420023589," TRESCIENTOS OCHENTA Y NUEVE 20/100 "," trescientos ochenta y nueve 20/100 "]
[233,"SOLANO ILAQUICHE SERGIO RUBEN",743.31102980367086," SETECIENTOS CUARENTA Y TRES 31/100 "," setecientos cuarenta y tres 31/100 "]
[234,"SOLIS PERALTA ANGEL BARTOLO",389.20276420023589," TRESCIENTOS OCHENTA Y NUEVE 20/100 "," trescientos ochenta y nueve 20/100 "]
[235,"SOLIS ROMERO HOLGER MARCELO",192.022016032615," CIENTO NOVENTA Y DOS 02/100 "," ciento noventa y dos 02/100 "]
[236,"SOLORZANO ORDONES CALIXTO SANTIAGO",743.31102980367086," SETECIENTOS CUARENTA Y TRES 31/100 "," setecientos cuarenta y tres 31/100 "]
[237,"SOLORZANO PALMA RENNY FAVIAN",1097.4192954071059," UN MIL NOVENTA Y SIETE 42/100 "," un mil noventa y siete 42/100 "]
[238,"SOTO CANDO GUIDO ORLANDO",920.36516260538838," NOVECIENTOS VEINTE 37/100 "," novecientos veinte 37/100 "]
[239,"SOTO CHAVEZ ANGEL EDUARDO",137.30208625952767," CIENTO TREINTA Y SIETE 30/100 "," ciento treinta y siete 30/100 "]
[240,"SOTO CHAVEZ CARLOS ALBERTO",389.20276420023589," TRESCIENTOS OCHENTA Y NUEVE 20/100 "," trescientos ochenta y nueve 20/100 "]
[241,"SUAREZ CACEREZ CESAR MARCELINO",389.20276420023589," TRESCIENTOS OCHENTA Y NUEVE 20/100 "," trescientos ochenta y nueve 20/100 "]
[242,"TAIPE USHIÑA VINICIO SANTIAGO",389.20276420023589," TRESCIENTOS OCHENTA Y NUEVE 20/100 "," trescientos ochenta y nueve 20/100 "]
[243,"TAMAYO PACHACAMA DANIEL EDUARDO",743.31102980367086," SETECIENTOS CUARENTA Y TRES 31/100 "," setecientos cuarenta y tres 31/100 "]
[244,"TAPIA WILSON WILSON EDUARDO",566.25689700195335," QUINIENTOS SESENTA Y SEIS 26/100 "," quinientos sesenta y seis 26/100 "]
[245,"TARIS FLORES RICARDO GABRIEL",389.20276420023589," TRESCIENTOS OCHENTA Y NUEVE 20/100 "," trescientos ochenta y nueve 20/100 "]
[246,"TARIS FLORES SANTIAGO LEON",202.34578033544375," DOSCIENTOS DOS 35/100 "," doscientos dos 35/100 "]
[247,"TASINCHANA PASUNA WILSON FABIAN",46.488107946139287," CUARENTA Y SEIS 49/100 "," cuarenta y seis 49/100 "]
[248,"TENEMPAGUAY PINA EDWIN CRISTIAN",566.25689700195335," QUINIENTOS SESENTA Y SEIS 26/100 "," quinientos sesenta y seis 26/100 "]
[249,"TIGUA CHOEZ KELIS WALTHER",547.10595777098092," QUINIENTOS CUARENTA Y SIETE 11/100 "," quinientos cuarenta y siete 11/100 "]
[250,"TOALA SOLORZANO LIDER AURELIO",332.42521055108614," TRESCIENTOS TREINTA Y DOS 43/100 "," trescientos treinta y dos 43/100 "]
[251,"TOAPANTA QUINTIO MIGUEL ORLANDO",153.39419376756473," CIENTO CINCUENTA Y TRES 39/100 "," ciento cincuenta y tres 39/100 "]
[252,"TOMALA BAZURTO GUILLERMO SALOMON",1097.4192954071059," UN MIL NOVENTA Y SIETE 42/100 "," un mil noventa y siete 42/100 "]
[253,"ULLOA IDROVO WALTER BLADIMIR",743.31102980367086," SETECIENTOS CUARENTA Y TRES 31/100 "," setecientos cuarenta y tres 31/100 "]
[254,"URQUIZO CARDENAS DARWIN GEOVANNY",250.81955915126315," DOSCIENTOS CINCUENTA 82/100 "," doscientos cincuenta 82/100 "]
[255,"UTITIAJ CHUINT EDDI DADI",389.20276420023589," TRESCIENTOS OCHENTA Y NUEVE 20/100 "," trescientos ochenta y nueve 20/100 "]
[256,"VAICILLA GAROFALO UFREDO GEOVANNY",920.36516260538838," NOVECIENTOS VEINTE 37/100 "," novecientos veinte 37/100 "]
[257,"VANEGAS VELECELA JOSE LUIS",318.93004288630442," TRESCIENTOS DIECIOCHO 93/100 "," trescientos dieciocho 93/100 "]
[258,"VARGAS DIAZ MANUEL IVAN",920.36516260538838," NOVECIENTOS VEINTE 37/100 "," novecientos veinte 37/100 "]
[{"$f":"+A259+1","v":259},"VARGAS LEMA DIOGENES LAUTARO",91.895097102833475," NOVENTA Y UN 90/100 "," noventa y un 90/100 "]
[260,"VARGAS LEMA WILLAN JAVIER",91.895097102833475," NOVENTA Y UN 90/100 "," noventa y un 90/100 "]
[261,"VARGAS VILLAMAR FERNANDO LAZARDO",389.20276420023589," TRESCIENTOS OCHENTA Y NUEVE 20/100 "," trescientos ochenta y nueve 20/100 "]
[262,"VASQUEZ NARANJO GUIDO FABRICIO",91.895097102833475," NOVENTA Y UN 90/100 "," noventa y un 90/100 "]
[263,"VEAS PAREJA ORLANDO FRANCISCO",231.35942094125136," DOSCIENTOS TREINTA Y UN 36/100 "," doscientos treinta y un 36/100 "]
[264,"VELASTEGUI MARTINEZ MARCELINO ANDRES",389.20276420023589," TRESCIENTOS OCHENTA Y NUEVE 20/100 "," trescientos ochenta y nueve 20/100 "]
[265,"VENEGAS VELA EDGAR FERNANDO",389.20276420023589," TRESCIENTOS OCHENTA Y NUEVE 20/100 "," trescientos ochenta y nueve 20/100 "]
[266,"VERA CASTRO GEOVANY ROBERTO",286.54837157852211," DOSCIENTOS OCHENTA Y SEIS 55/100 "," doscientos ochenta y seis 55/100 "]
[267,"VILLALVA QUIÑONEZ DARWIN EFRAIN",389.20276420023589," TRESCIENTOS OCHENTA Y NUEVE 20/100 "," trescientos ochenta y nueve 20/100 "]
[268,"WACHAPA KAYAP ESAT BENJAMIN",281.09088525572594," DOSCIENTOS OCHENTA Y UN 09/100 "," doscientos ochenta y un 09/100 "]
[269,"WALE CHALEN EDWAR JAVIER",34.595801262243192," TREINTA Y CUATRO 60/100 "," treinta y cuatro 60/100 "]
[270,"YANZA PUCHA MENTOR RAUL",920.36516260538838,{"$f":"(+numletras(C271))","v":" NOVECIENTOS VEINTE 37/100 "},{"$f":"LOWER(+numletras(C271))","v":" novecientos veinte 37/100 "}]
[271,"YASACA YUCAILLA MILTON OSWALDO",64.867127366705986," SESENTA Y CUATRO 87/100 "," sesenta y cuatro 87/100 "]
[272,"YASCARIBAY GUAMAN DIEGO ARMANDO",91.895097102833475," NOVENTA Y UN 90/100 "," noventa y un 90/100 "]
[273,"YUNGAN QUISHPE CRISTIAN FABIAN",389.20276420023589," TRESCIENTOS OCHENTA Y NUEVE 20/100 "," trescientos ochenta y nueve 20/100 "]
[274,"ZAMBRANO CAICEDO FELIPE DARIO",566.25689700195335," QUINIENTOS SESENTA Y SEIS 26/100 "," quinientos sesenta y seis 26/100 "]
[275,"ZAMBRANO CORTEZ WILFRIDO BIENVENIDO",57.29929584059029," CINCUENTA Y SIETE 30/100 "," cincuenta y siete 30/100 "]
[276,"ZAMBRANO VILLALVA CARLOS CESAR",57.29929584059029," CINCUENTA Y SIETE 30/100 "," cincuenta y siete 30/100 "]
[277,"ZAPATA JIJON JUAN FRANCISCO",743.31102980367086," SETECIENTOS CUARENTA Y TRES 31/100 "," setecientos cuarenta y tres 31/100 "]
[278,"ZARUMA COELLO JONATHAN MIGUEL",182.70907541622185," CIENTO OCHENTA Y DOS 71/100 "," ciento ochenta y dos 71/100 "]
[279,"ZAVALA IBARRA ELIAS ANTONIO",389.20276420023589," TRESCIENTOS OCHENTA Y NUEVE 20/100 "," trescientos ochenta y nueve 20/100 "]
[280,"ZIZA SHUGULI CARLOS PAOLO",174.06012510066105," CIENTO SETENTA Y CUATRO 06/100 "," ciento setenta y cuatro 06/100 "]